[Event "Titled Tuesday Blitz April 11 Early 2023"]
[White "TimGrutter03"]
[Black "Pranesh M"]
[BlackFideId "35028600"]
[WhiteElo "2589"]
[BlackElo "2437"]
[Result "0-1"]
[Round "04"]
[TimeControl "180+2"]
[Date "2023.04.11"]
[WhiteClock "0:00:01"]
[BlackClock "0:00:17"]

1. e4 {[%clk 0:03:00]}  e5 {[%clk 0:02:59]} 2. Nf3 {[%clk 0:02:59]}  Nc6 {[%clk 0:03:00]} 3. g3 {[%clk 0:02:59]}  Nf6 {[%clk 0:02:59]} 4. d3 {[%clk 0:02:59]}  d5 {[%clk 0:02:59]} 5. exd5 {[%clk 0:03:00]}  Nxd5 {[%clk 0:03:00]} 6. Bg2 {[%clk 0:03:00]}  Bc5 {[%clk 0:03:00]} 7. O-O {[%clk 0:03:00]}  O-O {[%clk 0:03:00]} 8. Nxe5 {[%clk 0:02:59]}  Nxe5 {[%clk 0:02:36]} 9. d4 {[%clk 0:02:59]}  Bg4 {[%clk 0:02:36]} 10. f3 {[%clk 0:02:52]}  Nxf3+ {[%clk 0:02:29]} 11. Bxf3 {[%clk 0:02:49]}  Bxf3 {[%clk 0:02:29]} 12. Rxf3 {[%clk 0:02:49]}  Bb6 {[%clk 0:02:21]} 13. c4 {[%clk 0:02:32]}  Nb4 {[%clk 0:02:12]} 14. Be3 {[%clk 0:02:31]}  Bxd4 {[%clk 0:02:07]} 15. Bxd4 {[%clk 0:02:09]}  c5 {[%clk 0:02:04]} 16. Nc3 {[%clk 0:02:02]}  cxd4 {[%clk 0:01:59]} 17. Nb5 {[%clk 0:01:31]}  d3 {[%clk 0:01:37]} 18. Qd2 {[%clk 0:01:29]}  Qe7 {[%clk 0:01:09]} 19. b3 {[%clk 0:00:51]}  a6 {[%clk 0:00:53]} 20. Nc3 {[%clk 0:00:49]}  Rad8 {[%clk 0:00:49]} 21. Re1 {[%clk 0:00:35]}  Qc5+ {[%clk 0:00:49]} 22. Qf2 {[%clk 0:00:25]}  Qa5 {[%clk 0:00:43]} 23. Qd2 {[%clk 0:00:17]}  Nxa2 {[%clk 0:00:39]} 24. Qxa2 {[%clk 0:00:11]}  Qxc3 {[%clk 0:00:39]} 25. Rd1 {[%clk 0:00:07]}  Qc2 {[%clk 0:00:36]} 26. Qa1 {[%clk 0:00:03]}  Rfe8 {[%clk 0:00:35]} 27. Rf2 {[%clk 0:00:02]}  Re2 {[%clk 0:00:31]} 28. Rxe2 {[%clk 0:00:02]}  Qxe2 {[%clk 0:00:32]} 29. Re1 {[%clk 0:00:02]}  Qc2 {[%clk 0:00:30]} 30. Qd1 {[%clk 0:00:02]}  h6 {[%clk 0:00:28]} 31. Rf1 {[%clk 0:00:01]}  Qc3 {[%clk 0:00:21]} 32. Qf3 {[%clk 0:00:01]}  Qd4+ {[%clk 0:00:20]} 33. Kh1 {[%clk 0:00:01]}  Rd7 {[%clk 0:00:21]} 34. Qf5 {[%clk 0:00:01]}  d2 {[%clk 0:00:20]} 35. Rd1 {[%clk 0:00:02]}  Re7 {[%clk 0:00:18]} 36. Qf3 {[%clk 0:00:02]}  Re1+ {[%clk 0:00:18]} 37. Kg2 {[%clk 0:00:02]}  g6 {[%clk 0:00:16]} 38. Rxe1 {[%clk 0:00:01]}  dxe1=Q {[%clk 0:00:17]} 0-1


[Site "https://www.chess.com"]

[Event "Titled Tuesday Blitz April 11 Early 2023"]
[White "MKlose11"]
[Black "Zakhartsov, Vladimir"]
[BlackFideId "4145097"]
[WhiteElo "2581"]
[BlackElo "2497"]
[Result "0-1"]
[Round "04"]
[TimeControl "180+2"]
[Date "2023.04.11"]
[WhiteClock "0:00:06"]
[BlackClock "0:00:06"]

1. e4 {[%clk 0:03:00]}  e5 {[%clk 0:02:57]} 2. Nf3 {[%clk 0:02:57]}  Nc6 {[%clk 0:02:57]} 3. d4 {[%clk 0:02:55]}  exd4 {[%clk 0:02:57]} 4. Bc4 {[%clk 0:02:54]}  Nf6 {[%clk 0:02:56]} 5. O-O {[%clk 0:02:54]}  Nxe4 {[%clk 0:02:45]} 6. Re1 {[%clk 0:02:53]}  d5 {[%clk 0:02:45]} 7. Bxd5 {[%clk 0:02:54]}  Qxd5 {[%clk 0:02:46]} 8. Nc3 {[%clk 0:02:54]}  Qd8 {[%clk 0:02:46]} 9. Rxe4+ {[%clk 0:02:42]}  Be7 {[%clk 0:02:39]} 10. Nxd4 {[%clk 0:02:34]}  O-O {[%clk 0:02:17]} 11. Nxc6 {[%clk 0:02:33]}  bxc6 {[%clk 0:02:18]} 12. Qxd8 {[%clk 0:02:29]}  Bxd8 {[%clk 0:02:19]} 13. Bf4 {[%clk 0:02:20]}  Be6 {[%clk 0:02:16]} 14. Rd1 {[%clk 0:02:14]}  Bf5 {[%clk 0:02:05]} 15. Rc4 {[%clk 0:02:05]}  Bxc2 {[%clk 0:02:04]} 16. Rd2 {[%clk 0:02:04]}  Bf5 {[%clk 0:02:01]} 17. Rxc6 {[%clk 0:02:04]}  Re8 {[%clk 0:01:58]} 18. h3 {[%clk 0:01:58]}  h6 {[%clk 0:01:37]} 19. Nb5 {[%clk 0:01:46]}  Re4 {[%clk 0:01:23]} 20. Bg3 {[%clk 0:01:28]}  a6 {[%clk 0:01:16]} 21. Nxc7 {[%clk 0:01:21]}  Rc8 {[%clk 0:01:16]} 22. Rc5 {[%clk 0:01:08]}  Bxc7 {[%clk 0:01:04]} 23. Rxf5 {[%clk 0:00:57]}  Bxg3 {[%clk 0:00:55]} 24. fxg3 {[%clk 0:00:58]}  f6 {[%clk 0:00:52]} 25. Ra5 {[%clk 0:00:52]}  Rc6 {[%clk 0:00:51]} 26. Rad5 {[%clk 0:00:52]}  Kh7 {[%clk 0:00:50]} 27. g4 {[%clk 0:00:52]}  Rc1+ {[%clk 0:00:34]} 28. Kh2 {[%clk 0:00:51]}  Kg6 {[%clk 0:00:29]} 29. Rd6 {[%clk 0:00:47]}  a5 {[%clk 0:00:29]} 30. R6d5 {[%clk 0:00:46]}  a4 {[%clk 0:00:25]} 31. R5d4 {[%clk 0:00:46]}  Rxd4 {[%clk 0:00:22]} 32. Rxd4 {[%clk 0:00:47]}  Rc2 {[%clk 0:00:23]} 33. Rb4 {[%clk 0:00:41]}  h5 {[%clk 0:00:20]} 34. gxh5+ {[%clk 0:00:39]}  Kxh5 {[%clk 0:00:20]} 35. a3 {[%clk 0:00:39]}  f5 {[%clk 0:00:19]} 36. Kg3 {[%clk 0:00:36]}  g5 {[%clk 0:00:20]} 37. Kf3 {[%clk 0:00:36]}  f4 {[%clk 0:00:17]} 38. Rb8 {[%clk 0:00:26]}  Rd2 {[%clk 0:00:15]} 39. Rb4 {[%clk 0:00:25]}  Rc2 {[%clk 0:00:13]} 40. g4+ {[%clk 0:00:19]}  Kg6 {[%clk 0:00:07]} 41. Rb6+ {[%clk 0:00:18]}  Kf7 {[%clk 0:00:07]} 42. h4 {[%clk 0:00:18]}  gxh4 {[%clk 0:00:06]} 43. Kxf4 {[%clk 0:00:18]}  Kg7 {[%clk 0:00:02]} 44. Rb7+ {[%clk 0:00:14]}  Kg6 {[%clk 0:00:02]} 45. Rb6+ {[%clk 0:00:15]}  Kg7 {[%clk 0:00:03]} 46. Kg5 {[%clk 0:00:14]}  h3 {[%clk 0:00:03]} 47. Rb7+ {[%clk 0:00:13]}  Kg8 {[%clk 0:00:03]} 48. Rb8+ {[%clk 0:00:13]}  Kg7 {[%clk 0:00:03]} 49. Rb7+ {[%clk 0:00:14]}  Kg8 {[%clk 0:00:04]} 50. Rb6 {[%clk 0:00:13]}  h2 {[%clk 0:00:03]} 51. Rh6 {[%clk 0:00:13]}  Rxb2 {[%clk 0:00:04]} 52. Kf5 {[%clk 0:00:11]}  Kg7 {[%clk 0:00:04]} 53. Rh5 {[%clk 0:00:10]}  Rf2+ {[%clk 0:00:04]} 54. Ke4 {[%clk 0:00:10]}  Kg6 {[%clk 0:00:04]} 55. Kd5 {[%clk 0:00:07]}  Rg2 {[%clk 0:00:03]} 56. Kc5 {[%clk 0:00:06]}  Kg7 {[%clk 0:00:01]} 57. Kb5 {[%clk 0:00:06]}  Kg6 {[%clk 0:00:01]} 58. Ka5 {[%clk 0:00:06]}  Kf6 {[%clk 0:00:01]} 59. Rh6+ {[%clk 0:00:04]}  Kg5 {[%clk 0:00:02]} 60. Rh8 {[%clk 0:00:04]}  Kxg4 {[%clk 0:00:02]} 61. Kxa4 {[%clk 0:00:04]}  Kg3 {[%clk 0:00:03]} 62. Ka5 {[%clk 0:00:05]}  Rf2 {[%clk 0:00:03]} 63. a4 {[%clk 0:00:04]}  Rf4 {[%clk 0:00:03]} 64. Rxh2 {[%clk 0:00:03]}  Kxh2 {[%clk 0:00:04]} 65. Kb6 {[%clk 0:00:04]}  Rxa4 {[%clk 0:00:04]} 66. Kb5 {[%clk 0:00:04]}  Rh4 {[%clk 0:00:05]} 67. Kc5 {[%clk 0:00:05]}  Kg3 {[%clk 0:00:05]} 68. Kb5 {[%clk 0:00:06]}  Rf4 {[%clk 0:00:06]} 0-1


[Site "https://www.chess.com"]

[Event "Titled Tuesday Blitz April 11 Early 2023"]
[White "Narayanan, Srinath"]
[Black "Filgueira, Hernan"]
[WhiteFideId "5018420"]
[BlackFideId "101770"]
[WhiteElo "2438"]
[BlackElo "2363"]
[Result "1-0"]
[Round "04"]
[TimeControl "180+2"]
[Date "2023.04.11"]
[WhiteClock "0:00:32"]
[BlackClock "0:00:01"]

1. Nf3 {[%clk 0:03:00]}  Nf6 {[%clk 0:02:58]} 2. c4 {[%clk 0:03:01]}  e6 {[%clk 0:02:56]} 3. d4 {[%clk 0:03:01]}  d5 {[%clk 0:02:54]} 4. h3 {[%clk 0:03:02]}  c6 {[%clk 0:02:51]} 5. e3 {[%clk 0:03:02]}  Nbd7 {[%clk 0:02:51]} 6. Be2 {[%clk 0:03:01]}  a6 {[%clk 0:02:50]} 7. O-O {[%clk 0:03:01]}  dxc4 {[%clk 0:02:49]} 8. Bxc4 {[%clk 0:03:01]}  b5 {[%clk 0:02:49]} 9. Bd3 {[%clk 0:03:01]}  c5 {[%clk 0:02:49]} 10. a4 {[%clk 0:03:01]}  b4 {[%clk 0:02:47]} 11. a5 {[%clk 0:02:59]}  Bb7 {[%clk 0:02:47]} 12. Nbd2 {[%clk 0:02:59]}  Be7 {[%clk 0:02:46]} 13. b3 {[%clk 0:02:59]}  O-O {[%clk 0:02:46]} 14. Bb2 {[%clk 0:02:59]}  cxd4 {[%clk 0:02:45]} 15. Nxd4 {[%clk 0:02:59]}  Nc5 {[%clk 0:02:36]} 16. Be2 {[%clk 0:02:59]}  Rc8 {[%clk 0:02:26]} 17. Nc4 {[%clk 0:02:59]}  Nd5 {[%clk 0:02:19]} 18. Rc1 {[%clk 0:02:53]}  Bf6 {[%clk 0:02:14]} 19. Bf3 {[%clk 0:02:51]}  Ba8 {[%clk 0:02:00]} 20. Qc2 {[%clk 0:02:43]}  Nd7 {[%clk 0:01:37]} 21. Qe2 {[%clk 0:02:38]}  Qe7 {[%clk 0:01:26]} 22. Rfd1 {[%clk 0:02:34]}  h6 {[%clk 0:01:23]} 23. Nf5 {[%clk 0:02:33]}  exf5 {[%clk 0:01:19]} 24. Bxd5 {[%clk 0:02:33]}  Bxb2 {[%clk 0:01:16]} 25. Qxb2 {[%clk 0:02:30]}  Nf6 {[%clk 0:01:11]} 26. Bxa8 {[%clk 0:02:14]}  Rxa8 {[%clk 0:01:10]} 27. Qe5 {[%clk 0:02:15]}  Qxe5 {[%clk 0:01:02]} 28. Nxe5 {[%clk 0:02:16]}  Ne4 {[%clk 0:00:58]} 29. Rc4 {[%clk 0:02:14]}  Rad8 {[%clk 0:00:54]} 30. Rdd4 {[%clk 0:02:03]}  Nc3 {[%clk 0:00:35]} 31. Kf1 {[%clk 0:01:59]}  Nb5 {[%clk 0:00:31]} 32. Rxd8 {[%clk 0:01:49]}  Rxd8 {[%clk 0:00:30]} 33. Rxb4 {[%clk 0:01:49]}  Rd1+ {[%clk 0:00:28]} 34. Ke2 {[%clk 0:01:49]}  Ra1 {[%clk 0:00:28]} 35. Nc6 {[%clk 0:01:45]}  Ra2+ {[%clk 0:00:27]} 36. Kf3 {[%clk 0:01:45]}  g6 {[%clk 0:00:25]} 37. Rc4 {[%clk 0:01:42]}  Nd6 {[%clk 0:00:22]} 38. Ra4 {[%clk 0:01:33]}  Rb2 {[%clk 0:00:20]} 39. Nd4 {[%clk 0:01:24]}  Ne4 {[%clk 0:00:20]} 40. Kf4 {[%clk 0:01:25]}  Rxf2+ {[%clk 0:00:19]} 41. Ke5 {[%clk 0:01:25]}  Rxg2 {[%clk 0:00:19]} 42. Rb4 {[%clk 0:01:26]}  Ra2 {[%clk 0:00:18]} 43. Rb8+ {[%clk 0:01:25]}  Kg7 {[%clk 0:00:17]} 44. b4 {[%clk 0:01:26]}  Ra3 {[%clk 0:00:14]} 45. Kf4 {[%clk 0:01:11]}  Nf6 {[%clk 0:00:11]} 46. Rd8 {[%clk 0:01:07]}  Nh5+ {[%clk 0:00:09]} 47. Kf3 {[%clk 0:00:57]}  f4 {[%clk 0:00:10]} 48. Re8 {[%clk 0:00:57]}  Nf6 {[%clk 0:00:09]} 49. Re5 {[%clk 0:00:57]}  fxe3 {[%clk 0:00:09]} 50. Nc2 {[%clk 0:00:57]}  Rc3 {[%clk 0:00:06]} 51. Nxe3 {[%clk 0:00:58]}  Nh7 {[%clk 0:00:04]} 52. Ke2 {[%clk 0:00:50]}  Ng5 {[%clk 0:00:04]} 53. Re7 {[%clk 0:00:44]}  Nxh3 {[%clk 0:00:03]} 54. Ra7 {[%clk 0:00:42]}  Nf4+ {[%clk 0:00:03]} 55. Kf2 {[%clk 0:00:41]}  Nd3+ {[%clk 0:00:03]} 56. Ke2 {[%clk 0:00:39]}  Nxb4 {[%clk 0:00:04]} 57. Rb7 {[%clk 0:00:39]}  Nc6 {[%clk 0:00:01]} 58. Nd5 {[%clk 0:00:33]}  Rc5 {[%clk 0:00:02]} 59. Nc7 {[%clk 0:00:33]}  Nxa5 {[%clk 0:00:02]} 60. Ne6+ {[%clk 0:00:34]}  Kf6 {[%clk 0:00:01]} 61. Nxc5 {[%clk 0:00:32]} 1-0


[Site "https://www.chess.com"]

[Event "Titled Tuesday Blitz April 11 Early 2023"]
[White "Lobanov, Sergei"]
[Black "Kim, Sergey"]
[WhiteFideId "24183750"]
[BlackFideId "13700570"]
[WhiteElo "2489"]
[BlackElo "2579"]
[Result "1-0"]
[Round "04"]
[TimeControl "180+2"]
[Date "2023.04.11"]
[WhiteClock "0:00:28"]
[BlackClock "0:00:17"]

1. d4 {[%clk 0:03:00]}  Nf6 {[%clk 0:02:59]} 2. c4 {[%clk 0:03:01]}  g6 {[%clk 0:03:00]} 3. Nc3 {[%clk 0:03:01]}  d6 {[%clk 0:03:00]} 4. e4 {[%clk 0:03:01]}  Bg7 {[%clk 0:03:01]} 5. h3 {[%clk 0:03:02]}  O-O {[%clk 0:03:01]} 6. Be3 {[%clk 0:03:02]}  e5 {[%clk 0:03:01]} 7. d5 {[%clk 0:03:01]}  a5 {[%clk 0:03:02]} 8. Bd3 {[%clk 0:03:01]}  Na6 {[%clk 0:03:02]} 9. Nge2 {[%clk 0:02:59]}  Nc5 {[%clk 0:03:02]} 10. Bc2 {[%clk 0:03:00]}  Bd7 {[%clk 0:03:02]} 11. Qd2 {[%clk 0:03:00]}  a4 {[%clk 0:03:02]} 12. g4 {[%clk 0:02:58]}  c6 {[%clk 0:03:00]} 13. dxc6 {[%clk 0:02:44]}  Bxc6 {[%clk 0:02:58]} 14. Ng3 {[%clk 0:02:44]}  Ne6 {[%clk 0:02:52]} 15. O-O-O {[%clk 0:02:22]}  Nd4 {[%clk 0:02:47]} 16. Nge2 {[%clk 0:02:20]}  Nxc2 {[%clk 0:02:44]} 17. Qxc2 {[%clk 0:02:19]}  Qa5 {[%clk 0:02:38]} 18. Rxd6 {[%clk 0:02:14]}  Rfc8 {[%clk 0:02:26]} 19. Kb1 {[%clk 0:01:48]}  Nd7 {[%clk 0:02:19]} 20. Nd5 {[%clk 0:01:42]}  Bxd5 {[%clk 0:02:13]} 21. Rxd5 {[%clk 0:01:42]}  Nc5 {[%clk 0:02:11]} 22. Rhd1 {[%clk 0:01:36]}  b6 {[%clk 0:02:08]} 23. Nc3 {[%clk 0:01:33]}  Qb4 {[%clk 0:01:45]} 24. Nb5 {[%clk 0:01:16]}  Ne6 {[%clk 0:01:29]} 25. Rc1 {[%clk 0:00:59]}  Rc6 {[%clk 0:01:06]} 26. a3 {[%clk 0:00:58]}  Qe7 {[%clk 0:01:04]} 27. Qd1 {[%clk 0:00:54]}  Nc5 {[%clk 0:01:03]} 28. Bxc5 {[%clk 0:00:50]}  Rxc5 {[%clk 0:00:58]} 29. Rc3 {[%clk 0:00:47]}  Rac8 {[%clk 0:00:54]} 30. Qxa4 {[%clk 0:00:45]}  Qf6 {[%clk 0:00:53]} 31. Qc2 {[%clk 0:00:41]}  Qf4 {[%clk 0:00:50]} 32. Qe2 {[%clk 0:00:39]}  Bh6 {[%clk 0:00:43]} 33. Ka2 {[%clk 0:00:39]}  Qh2 {[%clk 0:00:41]} 34. Rd7 {[%clk 0:00:35]}  Bg5 {[%clk 0:00:36]} 35. Nd6 {[%clk 0:00:34]}  Rf8 {[%clk 0:00:35]} 36. Rf3 {[%clk 0:00:33]}  Bf4 {[%clk 0:00:34]} 37. Rb3 {[%clk 0:00:33]}  Qh1 {[%clk 0:00:32]} 38. Rxb6 {[%clk 0:00:33]}  Qc1 {[%clk 0:00:32]} 39. Rbb7 {[%clk 0:00:31]}  Bh6 {[%clk 0:00:20]} 40. Rxf7 {[%clk 0:00:29]}  Rxf7 {[%clk 0:00:20]} 41. Nxf7 {[%clk 0:00:29]}  Bg7 {[%clk 0:00:16]} 42. Nd6 {[%clk 0:00:29]}  Bf8 {[%clk 0:00:17]} 43. Qf3 {[%clk 0:00:28]} 1-0


[Site "https://www.chess.com"]

[Event "Titled Tuesday Blitz April 11 Early 2023"]
[White "Real_OceanStorm"]
[Black "Pham, Le Thao Nguyen"]
[BlackFideId "12401226"]
[WhiteElo "2806"]
[BlackElo "2286"]
[Result "1-0"]
[Round "04"]
[TimeControl "180+2"]
[Date "2023.04.11"]
[WhiteClock "0:00:02"]
[BlackClock "0:00:01"]

1. e4 {[%clk 0:03:00]}  c5 {[%clk 0:02:56]} 2. Nf3 {[%clk 0:03:00]}  e6 {[%clk 0:02:56]} 3. c3 {[%clk 0:03:00]}  d5 {[%clk 0:02:52]} 4. e5 {[%clk 0:03:01]}  Nc6 {[%clk 0:02:48]} 5. d4 {[%clk 0:03:01]}  Qb6 {[%clk 0:02:40]} 6. Be2 {[%clk 0:02:57]}  Bd7 {[%clk 0:02:32]} 7. O-O {[%clk 0:02:56]}  Nge7 {[%clk 0:02:25]} 8. dxc5 {[%clk 0:02:49]}  Qxc5 {[%clk 0:02:23]} 9. Nbd2 {[%clk 0:02:48]}  Ng6 {[%clk 0:02:15]} 10. Nb3 {[%clk 0:02:45]}  Qb6 {[%clk 0:02:13]} 11. Be3 {[%clk 0:02:45]}  Qc7 {[%clk 0:02:12]} 12. Nbd4 {[%clk 0:02:45]}  a6 {[%clk 0:01:30]} 13. Nxc6 {[%clk 0:02:36]}  bxc6 {[%clk 0:01:30]} 14. c4 {[%clk 0:01:57]}  Nxe5 {[%clk 0:01:17]} 15. Rc1 {[%clk 0:01:56]}  Nxf3+ {[%clk 0:01:07]} 16. Bxf3 {[%clk 0:01:56]}  Qb7 {[%clk 0:01:04]} 17. b3 {[%clk 0:01:35]}  Ba3 {[%clk 0:00:56]} 18. Rb1 {[%clk 0:01:35]}  Be7 {[%clk 0:00:50]} 19. b4 {[%clk 0:01:29]}  O-O {[%clk 0:00:48]} 20. Bc5 {[%clk 0:01:28]}  Rfe8 {[%clk 0:00:37]} 21. Bxe7 {[%clk 0:01:14]}  Rxe7 {[%clk 0:00:38]} 22. Qd3 {[%clk 0:01:12]}  Be8 {[%clk 0:00:29]} 23. Rb3 {[%clk 0:01:01]}  Rd8 {[%clk 0:00:19]} 24. Be4 {[%clk 0:00:48]}  g6 {[%clk 0:00:14]} 25. Bf3 {[%clk 0:00:41]}  Red7 {[%clk 0:00:15]} 26. c5 {[%clk 0:00:41]}  e5 {[%clk 0:00:13]} 27. Be2 {[%clk 0:00:41]}  Ra8 {[%clk 0:00:12]} 28. Qg3 {[%clk 0:00:37]}  Re7 {[%clk 0:00:11]} 29. Qg5 {[%clk 0:00:37]}  Kg7 {[%clk 0:00:11]} 30. Rh3 {[%clk 0:00:28]}  f6 {[%clk 0:00:12]} 31. Qd2 {[%clk 0:00:21]}  Kg8 {[%clk 0:00:08]} 32. Rf3 {[%clk 0:00:14]}  f5 {[%clk 0:00:08]} 33. Rd1 {[%clk 0:00:13]}  e4 {[%clk 0:00:08]} 34. Rb3 {[%clk 0:00:13]}  Bf7 {[%clk 0:00:08]} 35. Qd4 {[%clk 0:00:08]}  Rae8 {[%clk 0:00:07]} 36. Ra3 {[%clk 0:00:08]}  Ra8 {[%clk 0:00:07]} 37. Qf6 {[%clk 0:00:08]}  Re6 {[%clk 0:00:06]} 38. Qd4 {[%clk 0:00:08]}  Re7 {[%clk 0:00:06]} 39. f4 {[%clk 0:00:06]}  exf3 {[%clk 0:00:05]} 40. Bxf3 {[%clk 0:00:07]}  Rae8 {[%clk 0:00:05]} 41. g3 {[%clk 0:00:07]}  Re1+ {[%clk 0:00:04]} 42. Rxe1 {[%clk 0:00:07]}  Rxe1+ {[%clk 0:00:05]} 43. Kf2 {[%clk 0:00:08]}  Qe7 {[%clk 0:00:05]} 44. Qc3 {[%clk 0:00:08]}  Rb1 {[%clk 0:00:04]} 45. Rxa6 {[%clk 0:00:06]}  d4 {[%clk 0:00:04]} 46. Ra8+ {[%clk 0:00:06]}  Be8 {[%clk 0:00:04]} 47. Qd2 {[%clk 0:00:03]}  Qf8 {[%clk 0:00:04]} 48. Bxc6 {[%clk 0:00:02]}  Kg7 {[%clk 0:00:02]} 49. Rxe8 {[%clk 0:00:02]}  Qf6 {[%clk 0:00:03]} 50. Bd5 {[%clk 0:00:03]}  d3 {[%clk 0:00:01]} 51. Rg8# {[%clk 0:00:02]} 1-0


[Site "https://www.chess.com"]

[Event "Titled Tuesday Blitz April 11 Early 2023"]
[White "Gontcharov, Vladislav"]
[Black "Urazayev, Arystanbek"]
[WhiteFideId "4123492"]
[BlackFideId "13709810"]
[WhiteElo "2420"]
[BlackElo "2449"]
[Result "0-1"]
[Round "04"]
[TimeControl "180+2"]
[Date "2023.04.11"]
[WhiteClock "0:00:02"]
[BlackClock "0:00:23"]

1. d4 {[%clk 0:03:00]}  Nf6 {[%clk 0:02:54]} 2. c4 {[%clk 0:03:00]}  e6 {[%clk 0:02:54]} 3. Nc3 {[%clk 0:03:00]}  Bb4 {[%clk 0:02:54]} 4. e3 {[%clk 0:03:00]}  b6 {[%clk 0:02:55]} 5. Nf3 {[%clk 0:02:56]}  Bb7 {[%clk 0:02:55]} 6. Bd3 {[%clk 0:02:56]}  Ne4 {[%clk 0:02:55]} 7. Qb3 {[%clk 0:02:48]}  Bxc3+ {[%clk 0:02:54]} 8. bxc3 {[%clk 0:02:48]}  O-O {[%clk 0:02:55]} 9. O-O {[%clk 0:02:48]}  d6 {[%clk 0:02:52]} 10. Qc2 {[%clk 0:02:42]}  f5 {[%clk 0:02:52]} 11. Ne1 {[%clk 0:02:42]}  Qh4 {[%clk 0:02:43]} 12. f3 {[%clk 0:02:26]}  Nf6 {[%clk 0:02:43]} 13. a4 {[%clk 0:01:54]}  a5 {[%clk 0:02:38]} 14. Rb1 {[%clk 0:01:54]}  Nbd7 {[%clk 0:02:38]} 15. Ba3 {[%clk 0:01:47]}  f4 {[%clk 0:02:32]} 16. exf4 {[%clk 0:01:23]}  Qxf4 {[%clk 0:02:30]} 17. c5 {[%clk 0:01:12]}  dxc5 {[%clk 0:02:02]} 18. dxc5 {[%clk 0:01:11]}  Rfd8 {[%clk 0:02:02]} 19. Qf2 {[%clk 0:01:08]}  Ne5 {[%clk 0:01:58]} 20. cxb6 {[%clk 0:00:51]}  cxb6 {[%clk 0:01:58]} 21. Bb5 {[%clk 0:00:35]}  Rab8 {[%clk 0:01:29]} 22. Qg3 {[%clk 0:00:27]}  Qe3+ {[%clk 0:01:27]} 23. Qf2 {[%clk 0:00:27]}  Qxf2+ {[%clk 0:01:07]} 24. Rxf2 {[%clk 0:00:26]}  Nd5 {[%clk 0:01:08]} 25. Rc1 {[%clk 0:00:24]}  Nf4 {[%clk 0:01:03]} 26. Kf1 {[%clk 0:00:18]}  Bc6 {[%clk 0:00:57]} 27. Rb1 {[%clk 0:00:17]}  Bxb5+ {[%clk 0:00:55]} 28. axb5 {[%clk 0:00:17]}  Nc4 {[%clk 0:00:55]} 29. Bc1 {[%clk 0:00:16]}  Nd3 {[%clk 0:00:54]} 30. Nxd3 {[%clk 0:00:16]}  Rxd3 {[%clk 0:00:54]} 31. Rc2 {[%clk 0:00:16]}  Rd1+ {[%clk 0:00:52]} 32. Ke2 {[%clk 0:00:16]}  Rh1 {[%clk 0:00:53]} 33. Rb3 {[%clk 0:00:11]}  Rxh2 {[%clk 0:00:48]} 34. Kf2 {[%clk 0:00:11]}  Rh1 {[%clk 0:00:47]} 35. Bf4 {[%clk 0:00:11]}  Rd8 {[%clk 0:00:47]} 36. Re2 {[%clk 0:00:11]}  Kf7 {[%clk 0:00:47]} 37. Bc7 {[%clk 0:00:10]}  Rc8 {[%clk 0:00:46]} 38. Bf4 {[%clk 0:00:10]}  a4 {[%clk 0:00:45]} 39. Rb4 {[%clk 0:00:10]}  a3 {[%clk 0:00:46]} 40. Ra4 {[%clk 0:00:11]}  Kf6 {[%clk 0:00:27]} 41. Re4 {[%clk 0:00:10]}  g5 {[%clk 0:00:23]} 42. Bg3 {[%clk 0:00:06]}  h5 {[%clk 0:00:22]} 43. Rexc4 {[%clk 0:00:06]}  Rxc4 {[%clk 0:00:23]} 44. Rxc4 {[%clk 0:00:06]}  a2 {[%clk 0:00:24]} 45. Ra4 {[%clk 0:00:05]}  a1=Q {[%clk 0:00:24]} 46. Rxa1 {[%clk 0:00:06]}  Rxa1 {[%clk 0:00:25]} 47. Bc7 {[%clk 0:00:06]}  Ra2+ {[%clk 0:00:26]} 48. Ke3 {[%clk 0:00:06]}  Rxg2 {[%clk 0:00:21]} 49. Bxb6 {[%clk 0:00:05]}  h4 {[%clk 0:00:22]} 50. Bd4+ {[%clk 0:00:04]}  e5 {[%clk 0:00:22]} 51. Bb6 {[%clk 0:00:03]}  h3 {[%clk 0:00:22]} 52. Bd8+ {[%clk 0:00:04]}  Kf5 {[%clk 0:00:23]} 53. b6 {[%clk 0:00:02]}  h2 {[%clk 0:00:23]} 54. b7 {[%clk 0:00:02]}  Rb2 {[%clk 0:00:23]} 0-1


[Site "https://www.chess.com"]

[Event "Titled Tuesday Blitz April 11 Early 2023"]
[White "Goltsev, Dmitry"]
[Black "slidingknight2775"]
[WhiteFideId "24176710"]
[WhiteElo "2336"]
[BlackElo "2571"]
[Result "1/2-1/2"]
[Round "04"]
[TimeControl "180+2"]
[Date "2023.04.11"]
[WhiteClock "0:00:33"]
[BlackClock "0:00:07"]

1. e4 {[%clk 0:02:59]}  c5 {[%clk 0:02:59]} 2. Nf3 {[%clk 0:02:59]}  d6 {[%clk 0:02:59]} 3. d4 {[%clk 0:02:58]}  cxd4 {[%clk 0:02:59]} 4. Nxd4 {[%clk 0:02:59]}  Nf6 {[%clk 0:03:00]} 5. Nc3 {[%clk 0:02:59]}  Nc6 {[%clk 0:03:00]} 6. Be2 {[%clk 0:02:59]}  e5 {[%clk 0:02:56]} 7. Nb3 {[%clk 0:02:59]}  Be7 {[%clk 0:02:57]} 8. O-O {[%clk 0:02:58]}  O-O {[%clk 0:02:55]} 9. f4 {[%clk 0:02:58]}  exf4 {[%clk 0:02:55]} 10. Bxf4 {[%clk 0:02:59]}  Be6 {[%clk 0:02:54]} 11. Bf3 {[%clk 0:02:58]}  Ne5 {[%clk 0:02:53]} 12. Nd4 {[%clk 0:02:56]}  Qd7 {[%clk 0:02:45]} 13. Kh1 {[%clk 0:02:55]}  a6 {[%clk 0:02:42]} 14. Nxe6 {[%clk 0:02:49]}  fxe6 {[%clk 0:02:43]} 15. Bxe5 {[%clk 0:02:49]}  dxe5 {[%clk 0:02:43]} 16. Qxd7 {[%clk 0:02:49]}  Nxd7 {[%clk 0:02:44]} 17. Bg4 {[%clk 0:02:50]}  Rxf1+ {[%clk 0:02:00]} 18. Rxf1 {[%clk 0:02:51]}  Nf6 {[%clk 0:02:01]} 19. Bxe6+ {[%clk 0:02:48]}  Kf8 {[%clk 0:02:01]} 20. Nd5 {[%clk 0:02:48]}  Rd8 {[%clk 0:01:57]} 21. c4 {[%clk 0:02:43]}  Bc5 {[%clk 0:01:49]} 22. b4 {[%clk 0:02:21]}  Bd4 {[%clk 0:01:42]} 23. c5 {[%clk 0:02:19]}  Ke8 {[%clk 0:01:37]} 24. Nc7+ {[%clk 0:02:01]}  Ke7 {[%clk 0:01:35]} 25. Bd5 {[%clk 0:02:00]}  Rd7 {[%clk 0:01:24]} 26. Ne6 {[%clk 0:01:40]}  Nxd5 {[%clk 0:01:23]} 27. exd5 {[%clk 0:01:39]}  Rxd5 {[%clk 0:01:24]} 28. Nxg7 {[%clk 0:01:37]}  e4 {[%clk 0:01:09]} 29. Nf5+ {[%clk 0:01:27]}  Ke6 {[%clk 0:01:08]} 30. g4 {[%clk 0:01:20]}  Ke5 {[%clk 0:00:33]} 31. a3 {[%clk 0:01:01]}  e3 {[%clk 0:00:22]} 32. Kg2 {[%clk 0:00:54]}  h5 {[%clk 0:00:16]} 33. h3 {[%clk 0:00:50]}  hxg4 {[%clk 0:00:15]} 34. hxg4 {[%clk 0:00:51]}  e2 {[%clk 0:00:13]} 35. Re1 {[%clk 0:00:50]}  Kf4 {[%clk 0:00:14]} 36. Rxe2 {[%clk 0:00:49]}  Kxg4 {[%clk 0:00:13]} 37. Nd6 {[%clk 0:00:48]}  b6 {[%clk 0:00:08]} 38. Rd2 {[%clk 0:00:44]}  bxc5 {[%clk 0:00:04]} 39. bxc5 {[%clk 0:00:44]}  Kf4 {[%clk 0:00:04]} 40. Nb7 {[%clk 0:00:37]}  Ke5 {[%clk 0:00:03]} 41. c6 {[%clk 0:00:37]}  Bb6 {[%clk 0:00:03]} 42. Rc2 {[%clk 0:00:36]}  Bc7 {[%clk 0:00:03]} 43. Nc5 {[%clk 0:00:35]}  Kd6 {[%clk 0:00:03]} 44. Nxa6 {[%clk 0:00:36]}  Ra5 {[%clk 0:00:03]} 45. Nc5 {[%clk 0:00:33]}  Rxc5 {[%clk 0:00:02]} 46. Rxc5 {[%clk 0:00:33]}  Kxc5 {[%clk 0:00:03]} 47. Kf3 {[%clk 0:00:31]}  Kxc6 {[%clk 0:00:04]} 48. Ke4 {[%clk 0:00:32]}  Kb5 {[%clk 0:00:05]} 49. Kd5 {[%clk 0:00:32]}  Ka4 {[%clk 0:00:06]} 50. Kc6 {[%clk 0:00:33]}  Kxa3 {[%clk 0:00:07]} 1/2-1/2


[Site "https://www.chess.com"]